bitfinex/quotes_ETHUSD_20251012
["timestamp","ask_amount","ask_price","bid_price","bid_amount"]
[1760272588442,2.60627887,3836.9,3836.2,2.60670417]
[1760272588801,2.60495325,3838.9,3836.1,0.002]
[1760272589006,2.60418899,3840.0,3836.2,2.60674625]
[1760272589007,0.40865853,3838.5,3836.2,2.60674625]
[1760272589205,1.92,3837.6,3836.9,2.60622141]
[1760272589407,0.6336,3837.6,3836.8,2.6063207]
[1760272589606,1.92,3837.6,3836.9,2.60626628]
[1760272589926,2.60580779,3837.6,3836.8,2.60632881]
[1760272590236,1.92,3837.3,3836.5,2.60647659]
[1760272590442,1.92,3837.3,3836.6,2.60644623]
[1760272590650,2.5536,3837.8,3836.8,2.60633029]
[1760272590947,2.60587557,3837.5,3836.8,2.60633029]
[1760272591236,2.5536,3837.6,3836.7,2.60640654]
[1760272591424,0.6336,3837.6,3837.0,2.60618324]
[1760272591626,2.5536,3837.6,3837.0,2.60618324]
[1760272592033,0.6336,3837.7,3836.9,2.60624662]
[1760272592210,1.92,3837.4,3836.8,2.60631294]
[1760272592416,1.92,3837.5,3836.9,2.60625322]
[1760272592611,2.60588574,3837.5,3836.9,2.60625322]
[1760272593036,2.60588574,3837.5,3836.8,2.60631836]
[1760272593243,1.92,3837.3,3836.8,2.60631836]
[1760272593652,1.92,3837.5,3836.9,2.60621741]
[1760272593821,0.6336,3837.7,3836.9,2.60621741]
[1760272594034,2.5536,3837.7,3836.9,2.60621741]
[1760272594353,1.92,3837.5,3836.9,2.60621741]
[1760272594963,0.1296,3837.2,3836.7,2.60638091]
[1760272595326,0.1296,3837.2,3836.6,0.1296]
[1760272595731,2.0496,3837.2,3836.6,2.7360479]
[1760272595966,2.73566764,3837.2,3836.6,0.1296]
[1760272596117,2.73566764,3837.2,3836.6,2.7360677]
[1760272597164,0.1296,3837.2,3836.7,2.60635296]
[1760272597369,0.1296,3837.2,3837.0,2.60616179]
[1760272597565,0.1296,3837.2,3837.0,2.60619864]
[1760272597862,2.60500072,3838.8,3836.4,1.92]
[1760272598027,2.60394619,3840.4,3837.1,3.077786]
[1760272598233,0.40851807,3839.6,3837.6,14.5]
[1760272598422,2.60482528,3839.1,3838.1,2.60540686]
[1760272598954,2.60485347,3839.0,3838.2,2.60538262]
[1760272599258,0.40851807,3839.6,3838.3,14.5]
[1760272599435,2.60509578,3838.7,3838.3,14.5]
[1760272599829,2.60499945,3838.8,3838.3,14.5]
[1760272600230,1.92,3839.3,3838.3,14.5]
[1760272600231,0.6336,3839.2,3838.4,2.60524375]
[1760272600833,2.5536,3839.2,3838.4,2.60524375]
[1760272601027,0.6336,3839.2,3838.3,14.5]
[1760272601229,0.6336,3839.2,3838.6,2.60510366]
[1760272601423,0.6336,3839.4,3838.6,2.60510366]
[1760272601625,2.5536,3839.4,3838.7,2.60503841]
[1760272601825,0.6336,3839.5,3838.8,2.60497684]
[1760272602159,0.6336,3839.6,3838.8,2.60497684]
[1760272602367,3.23808701,3839.6,3838.8,2.60497684]
[1760272602548,0.6336,3839.4,3838.8,2.60497684]
[1760272603068,3.23811415,3839.5,3838.6,2.60505077]
[1760272603236,3.23811415,3839.5,3838.3,14.5]
[1760272603237,3.23811415,3839.5,3838.7,2.60501952]
[1760272603661,1.92,3839.8,3838.4,2.60525218]
[1760272603834,2.6034905,3841.0,3838.5,0.4451]
[1760272604032,0.001,3841.1,3838.5,0.4451]
[1760272604033,0.001,3841.1,3839.6,2.60438936]
[1760272604354,2.60364129,3840.8,3839.9,2.60421597]
[1760272604766,2.60356063,3840.9,3839.9,2.60423448]
[1760272604934,2.60363233,3840.8,3839.7,2.60434472]
[1760272605135,2.60474121,3840.7,3840.0,14.5]
[1760272605329,2.60470773,3840.7,3840.0,14.5]
[1760272605536,1.92,3840.5,3840.0,14.5]
[1760272605765,1.92,3840.6,3840.0,14.5]
[1760272605952,0.001,3840.7,3840.0,14.5]
[1760272606341,2.60376473,3840.6,3840.0,14.5]
[1760272606577,0.001,3840.7,3840.0,14.5]
[1760272606762,2.60388014,3840.5,3840.0,14.5]
[1760272606972,1.92,3840.6,3840.0,14.5]
[1760272607980,0.1296,3840.3,3840.0,14.5]
[1760272613763,0.6336,3840.2,3839.6,0.1296]
[1760272613963,0.1296,3839.9,3839.2,0.1296]
[1760272614169,0.1296,3840.2,3839.6,2.60443796]
[1760272614366,0.001,3840.7,3839.6,0.4578]
[1760272614568,0.001,3840.7,3839.3,14.5]
[1760272614569,0.001,3840.7,3840.5,2.60382374]
[1760272614768,0.001,3840.7,3840.6,2.60375982]
[1760272615186,0.001,3840.7,3840.6,17.69115982]
[1760272615647,0.001,3840.7,3840.6,17.23335982]
[1760272617859,0.001,3840.7,3840.6,14.6296]
[1760272618479,0.001,3840.7,3840.6,17.23335982]
[1760272618872,0.001,3840.7,3840.6,14.6296]
[1760272620182,0.001,3840.7,3840.6,17.23335982]
[1760272620383,0.001,3840.7,3840.6,14.6296]
[1760272620908,0.001,3840.7,3840.6,17.23335982]
[1760272621110,0.001,3840.7,3840.6,14.6296]
[1760272621409,0.001,3840.7,3840.6,14.5]
[1760272621705,2.60469203,3840.7,3840.6,14.5]
[1760272621908,2.60469203,3840.7,3840.3,0.1296]
[1760272621909,2.60409885,3840.1,3840.0,0.002]
[1760272622257,0.1296,3840.1,3840.0,0.002]
[1760272623072,0.001,3840.7,3840.0,0.002]
[1760272623277,0.001,3840.7,3840.1,2.60405519]
[1760272623589,0.001,3840.7,3840.6,0.1296]
[1760272623790,0.001,3840.7,3840.6,14.6296]
[1760272624179,0.001,3840.7,3840.6,17.23335982]
[1760272624918,0.001,3840.7,3840.6,14.6296]
[1760272625623,2.60469203,3840.7,3840.6,14.5]
[1760272625774,0.001,3840.7,3840.6,14.5]
[1760272626090,2.60469203,3840.7,3840.6,14.5]
[1760272626621,2.60469203,3840.7,3840.2,0.1296]
[1760272626622,2.60375982,3840.6,3840.2,0.1296]
[1760272626822,2.60382762,3840.5,3840.2,0.1296]
[1760272626980,2.60470536,3840.7,3840.2,0.1296]
[1760272627174,2.60470536,3840.7,3840.3,14.5]
[1760272627577,2.60377346,3840.6,3840.3,14.5]
[1760272627811,2.60470655,3840.7,3840.3,14.5]
[1760272628226,2.60377239,3840.6,3840.3,14.5]
[1760272628437,2.60389542,3840.4,3840.3,14.5]
[1760272629046,2.60396323,3840.3,3840.0,0.002]
[1760272629229,2.73369885,3840.1,3840.0,0.002]
[1760272632353,5.28729885,3840.1,3840.0,0.002]
[1760272632502,4.65369885,3840.1,3840.0,0.002]
[1760272632707,4.52409885,3840.1,3840.0,0.002]
[1760272632939,5.15769885,3840.1,3840.0,0.002]
[1760272633140,4.52409885,3840.1,3840.0,0.002]
[1760272635327,5.15769885,3840.1,3840.0,0.002]
[1760272639945,4.65369885,3840.1,3840.0,0.002]
[1760272643855,5.28729885,3840.1,3840.0,0.002]
[1760272654059,3.36729885,3840.1,3840.0,0.002]
[1760272654636,3.23769885,3840.1,3840.0,0.002]
[1760272657867,5.15769885,3840.1,3840.0,0.002]
[1760272659175,5.15769885,3840.1,3839.6,0.002]
[1760272659176,3.23797013,3839.7,3839.6,1e-08]
[1760272659368,5.15797013,3839.7,3839.6,1e-08]
[1760272661861,16.29567613,3839.7,3839.6,1e-08]
[1760272662060,17.07937416,3839.7,3839.6,1e-08]
[1760272663156,14.37748916,3839.7,3839.6,1e-08]
[1760272663374,13.57168616,3839.7,3839.6,1e-08]
[1760272663580,5.94166816,3839.7,3839.6,1e-08]
[1760272669875,4.52437013,3839.7,3839.6,1e-08]
[1760272670401,3.23797013,3839.7,3839.6,1e-08]
[1760272670762,5.15797013,3839.7,3839.6,1e-08]
[1760272671189,3.23797013,3839.7,3839.6,1e-08]
[1760272677104,0.1296,3839.7,3839.6,1e-08]
[1760272677304,2.0496,3839.7,3839.6,1e-08]
[1760272677501,0.1296,3839.7,3839.6,1e-08]
[1760272678273,2.73397013,3839.7,3839.6,1e-08]
[1760272678875,0.1296,3839.7,3839.6,1e-08]
[1760272679700,2.73397013,3839.7,3839.6,1e-08]
[1760272680320,5.15797013,3839.7,3839.6,1e-08]
[1760272683904,1.92,3839.7,3839.6,1e-08]
[1760272684105,2.60412222,3840.1,3839.6,1e-08]
[1760272684362,2.60474023,3840.7,3839.6,1e-08]
[1760272684363,2.60423473,3839.9,3839.6,1e-08]
[1760272684636,2.6041004,3840.1,3839.6,1e-08]
[1760272684841,5.15797013,3839.7,3839.6,1e-08]
[1760272688150,5.56646163,3839.7,3839.6,1e-08]
[1760272689928,5.56746163,3839.7,3839.6,1e-08]
[1760272695634,3.23851286,3838.9,3838.8,1e-08]
[1760272695967,5.15851286,3838.9,3838.8,1e-08]
[1760272702489,5.38681286,3838.9,3838.8,1e-08]
[1760272703197,5.15851286,3838.9,3838.8,1e-08]
[1760272704048,5.56710766,3838.9,3838.8,1e-08]
[1760272705381,5.15851286,3838.9,3838.8,1e-08]
[1760272707862,5.15951286,3838.9,3838.8,1e-08]
[1760272709169,5.56809077,3838.9,3838.8,1e-08]
[1760272709961,4.93449077,3838.9,3838.8,1e-08]
[1760272710276,2.60591286,3838.9,3838.8,1e-08]
[1760272710586,0.001,3838.9,3838.8,1e-08]
[1760272710880,1.921,3838.9,3838.8,1e-08]
[1760272711089,0.001,3838.9,3838.8,2.60498073]
[1760272711882,0.001,3838.9,3838.8,3.05598073]
[1760272712461,0.001,3838.9,3838.8,1e-08]
[1760272712675,0.001,3838.9,3838.8,2.60498073]
[1760272714286,0.001,3838.9,3838.8,1e-08]
[1760272714578,0.001,3838.9,3838.8,2.60498073]
[1760272715962,0.001,3838.9,3838.8,1e-08]
[1760272716671,0.001,3838.9,3838.8,2.60498073]
[1760272717578,0.001,3838.9,3838.8,17.10498073]
[1760272719798,0.001,3838.9,3838.8,17.55598073]
[1760272720005,0.001,3838.9,3838.8,17.10498073]
[1760272730686,0.001,3838.9,3838.8,17.56318073]
[1760272731083,0.001,3838.9,3838.8,17.10498073]
[1760272732187,0.001,3838.9,3838.8,14.50000001]
[1760272732370,0.001,3838.9,3838.8,17.10498073]
[1760272733228,0.001,3838.9,3838.8,17.69278073]
[1760272733433,0.001,3838.9,3838.8,17.23458073]
[1760272733987,0.001,3838.9,3838.8,17.69278073]
[1760272736825,0.001,3838.9,3838.8,14.62960001]
[1760272738588,0.1306,3838.9,3838.8,14.50000001]
[1760272738918,2.73551286,3838.9,3838.8,14.50000001]
[1760272739119,2.73551286,3838.9,3838.8,1e-08]
[1760272741131,5.28911286,3838.9,3838.8,1e-08]
[1760272744494,5.39360893,3838.9,3838.8,1e-08]
[1760272744700,5.26400893,3838.9,3838.8,1e-08]
[1760272744907,5.15951286,3838.9,3838.8,1e-08]
[1760272745904,0.001,3838.9,3838.8,1e-08]
[1760272746313,2.0506,3838.9,3838.8,1e-08]
[1760272746616,0.1306,3838.9,3838.8,1e-08]
[1760272748350,0.001,3838.9,3838.8,2.60498073]
[1760272748561,0.001,3838.9,3838.8,3.06318073]
[1760272749617,0.001,3838.9,3838.8,3.19278073]
[1760272750247,0.001,3838.9,3838.8,17.69278073]
[1760272758359,0.001,3838.9,3838.8,19.61278073]
[1760272758525,0.001,3838.9,3838.8,19.74238073]
[1760272760937,0.001,3838.9,3838.8,19.61278073]
[1760272764047,0.001,3838.9,3838.8,20.24638073]
[1760272764248,0.001,3839.3,3839.2,4.52470931]
[1760272764465,0.001,3840.1,3840.0,2.60416666]
[1760272764667,0.001,3840.7,3840.6,2.60375982]
[1760272764868,0.001,3840.7,3840.6,17.10375982]
[1760272765149,0.001,3840.7,3840.6,17.56325982]
[1760272765345,0.001,3840.7,3840.6,19.48325982]
[1760272774595,0.001,3840.7,3840.6,19.61285982]
[1760272779898,0.001,3841.5,3841.0,2.60348867]
[1760272780200,0.001,3841.5,3841.4,4.52321757]
[1760272780698,0.001,3841.5,3841.4,3.06271757]
[1760272780987,0.001,3841.5,3841.4,17.56271757]
[1760272787607,0.001,3841.5,3841.4,14.5]
[1760272788291,0.001,3841.5,3841.4,17.10321757]
[1760272789396,0.001,3841.5,3841.4,17.57601757]
[1760272789893,0.001,3841.5,3841.4,17.70561757]
[1760272791191,0.001,3841.5,3841.4,14.6296]
[1760272791494,0.001,3841.5,3841.4,14.5]
[1760272791902,0.001,3841.5,3841.1,0.1296]
[1760272792196,0.001,3841.5,3838.8,1e-08]
[1760272792197,0.6336,3841.0,3840.0,0.1296]
[1760272792494,0.1296,3840.6,3840.2,14.5]
[1760272793286,2.73337912,3840.6,3840.2,14.5]
[1760272793887,2.60383306,3840.5,3840.2,14.5]
[1760272794091,2.60383306,3840.5,3840.1,0.002]
[1760272794092,2.73363104,3840.2,3840.1,0.002]
[1760272795309,0.1296,3840.2,3840.1,0.002]
[1760272795496,2.73363104,3840.2,3840.1,0.002]
[1760272797212,0.1296,3840.2,3840.1,0.002]
[1760272797401,2.73363104,3840.2,3840.1,0.002]
[1760272801413,5.28723104,3840.2,3840.1,0.002]
[1760272802117,5.15817363,3839.4,3839.3,0.002]
[1760272806217,9.51011363,3839.4,3839.3,0.002]
[1760272806616,8.33107963,3839.4,3839.3,0.002]
[1760272807117,24.86146963,3839.4,3839.3,0.002]
[1760272807303,13.86852063,3839.4,3839.3,0.002]
[1760272808420,14.88058563,3839.4,3839.3,0.002]
[1760272808917,5.15817363,3839.4,3839.3,0.002]
[1760272809715,35.15817363,3839.4,3839.3,0.002]
[1760272809882,24.37915063,3839.4,3839.3,0.002]
[1760272810085,15.35844763,3839.4,3839.3,0.002]
[1760272811183,2.60484501,3839.0,3838.9,1e-08]
[1760272811410,5.15844501,3839.0,3838.9,1e-08]
[1760272811625,4.52484501,3839.0,3838.9,1e-08]
[1760272813003,3.23844501,3839.0,3838.9,1e-08]
[1760272817019,0.40850079,3839.5,3838.9,1e-08]
[1760272817194,2.60484501,3839.0,3838.9,1e-08]
[1760272817534,3.23844501,3839.0,3838.9,1e-08]
[1760272817896,5.15844501,3839.0,3838.9,1e-08]
[1760272818241,2.60463935,3839.4,3838.9,1e-08]
[1760272818447,0.1296,3839.1,3838.9,1e-08]
[1760272818864,0.1296,3839.1,3838.9,2.60485408]
[1760272819148,0.1296,3839.1,3838.9,1e-08]
[1760272819580,0.1296,3839.1,3839.0,2.60484501]
[1760272819746,0.1296,3839.7,3839.3,2.60462773]
[1760272819910,0.1296,3839.7,3839.4,2.60451693]
[1760272820246,0.1296,3839.7,3839.5,17.10449815]
[1760272820406,0.1296,3839.7,3839.5,17.10448613]
[1760272820743,2.60385757,3840.5,3839.8,2.60428712]
[1760272820939,0.1296,3840.3,3839.9,2.60422673]
[1760272821508,0.1296,3840.3,3839.9,3.05710369]
[1760272821713,0.1296,3840.3,3839.9,2.60420369]
[1760272822043,0.1296,3840.3,3839.6,0.1296]
[1760272822221,0.6336,3839.9,3839.5,14.5]
[1760272822417,0.6336,3839.7,3839.5,14.5]
[1760272822757,2.60443796,3839.6,3839.5,14.5]
[1760272823247,2.60439322,3839.7,3838.8,1e-08]
[1760272823480,2.60439322,3839.7,3839.0,2.60484385]
[1760272823784,2.60439322,3839.7,3839.1,14.5]
[1760272824772,1.92,3840.5,3839.2,0.4529]
[1760272824940,1.92,3840.4,3839.7,2.60435825]
[1760272825139,1.92,3840.4,3839.8,2.60429418]
[1760272825368,5.15724405,3840.8,3839.9,17.10423077]
[1760272825570,0.78323357,3842.5,3839.9,17.10423077]
[1760272825571,2.60375805,3840.7,3840.0,2.60416666]
[1760272825869,2.60362237,3840.9,3840.1,2.60409]
[1760272826042,1.92,3840.9,3840.0,2.60414262]
[1760272826246,0.6336,3840.7,3840.0,2.60414262]
[1760272826445,0.6336,3840.5,3840.0,2.60414262]
[1760272826646,0.6336,3840.8,3840.0,2.60414262]
[1760272826948,1.0,3949.5,3839.9,14.5]
[1760272826949,2.60275077,3842.1,3840.6,2.60369825]
[1760272827269,0.6336,3841.2,3840.6,2.60369825]
[1760272827435,1.92,3841.3,3840.5,0.4529]
[1760272827636,0.001,3841.5,3840.7,14.5]
[1760272827850,2.60362424,3840.8,3839.9,2.60421008]
[1760272828070,0.6336,3840.7,3839.9,2.60421008]
[1760272828270,0.6336,3840.5,3839.9,2.60421008]
[1760272829079,2.60389561,3840.4,3839.5,0.4529]
[1760272829283,0.6336,3840.2,3839.4,2.60454826]
[1760272829572,0.6336,3840.5,3839.8,2.60428288]
[1760272829749,5.15743892,3840.5,3839.8,2.60428288]
[1760272832254,0.1296,3840.3,3839.8,2.60428288]
[1760272833366,0.1296,3840.3,3839.9,2.60422528]
[1760272833689,0.1296,3840.3,3840.0,2.60416512]
[1760272833884,0.1296,3840.3,3839.9,2.60421084]
[1760272834182,0.1296,3840.3,3839.9,2.60422934]
[1760272834553,0.1296,3840.3,3839.8,2.60428193]
[1760272834966,0.1296,3840.3,3839.8,2.60428624]
[1760272836174,0.1296,3840.3,3839.6,0.1296]
[1760272836175,0.1296,3840.3,3839.7,2.60434554]
[1760272836371,0.1296,3840.3,3839.6,0.1296]
[1760272836687,0.1296,3840.3,3839.8,2.60429595]
[1760272837381,0.1296,3840.3,3840.1,14.5]
[1760272839963,0.1296,3840.3,3840.2,2.60403104]
[1760272840159,0.1296,3841.0,3840.5,2.60377891]
[1760272840375,0.1296,3841.0,3840.6,2.60375539]
[1760272840777,0.1296,3841.0,3840.6,2.60375855]
[1760272841597,0.1296,3841.0,3840.7,2.60369183]
[1760272842992,0.1296,3841.0,3840.6,2.6037382]
[1760272843602,0.1296,3841.0,3840.7,14.5]
[1760272844804,0.1296,3841.0,3840.7,17.1036901]
[1760272845182,0.1306,3841.0,3840.7,17.1036901]
[1760272846321,0.001,3841.0,3840.9,2.60355645]
[1760272846604,0.001,3841.0,3840.9,2.73315645]
[1760272846808,0.001,3841.0,3840.9,3.18295645]
[1760272847010,0.001,3841.0,3840.9,17.68295645]
[1760272847793,0.001,3841.0,3840.9,19.60295645]
[1760272863209,0.001,3841.0,3840.9,21.54095642]
[1760272864294,0.001,3841.0,3840.9,19.60295645]
[1760272871167,0.001,3842.3,3840.9,19.60295645]
[1760272871168,1.92,3843.2,3841.9,2.60287628]
[1760272871376,2.60234025,3842.7,3841.9,2.60287628]
[1760272871844,0.6336,3842.5,3842.0,2.60280379]
[1760272872023,0.6336,3842.5,3842.1,14.5]
[1760272872531,2.60247369,3842.5,3842.1,14.5]
[1760272872757,2.60254775,3842.4,3842.1,14.5]
[1760272873147,2.60249272,3842.5,3842.1,14.5]
[1760272873825,0.6336,3842.5,3842.1,14.5]
[1760272874726,2.60247753,3842.5,3842.1,14.5]
[1760272875358,2.60227947,3842.8,3842.1,14.5]
[1760272875359,2.60255048,3842.4,3842.1,14.5]
[1760272876060,0.6336,3842.8,3842.1,14.5]
[1760272876363,0.6336,3842.5,3842.1,14.5]
[1760272876758,0.6336,3842.6,3842.1,17.10270253]
[1760272877269,1.92,3844.0,3842.2,0.66]
[1760272877564,2.60169154,3843.7,3843.0,2.60208332]
[1760272877747,2.60153733,3843.9,3843.0,2.60213374]
[1760272877928,2.6014359,3844.1,3843.1,17.10205991]
[1760272878129,0.28029171,3845.3,3843.1,14.5]
[1760272878130,2.60202026,3844.7,3843.1,14.5]
[1760272878330,2.60116238,3844.5,3843.1,14.5]
[1760272878527,1.92,3844.2,3843.1,14.5]
[1760272878730,2.60180347,3843.5,3843.1,14.5]
[1760272879345,0.6336,3843.6,3843.1,14.5]
[1760272879541,3.23533904,3843.6,3843.1,14.5]
[1760272879764,0.6336,3843.5,3843.1,14.5]
[1760272880379,2.60179978,3843.5,3843.1,14.5]
[1760272880592,0.6336,3843.5,3843.1,14.5]
[1760272880874,0.001,3843.2,3843.1,14.5]
[1760272888044,0.001,3843.2,3843.1,17.70526604]
[1760272889643,0.001,3843.2,3843.1,19.62526604]
[1760272898594,0.001,3843.2,3843.1,14.5]
[1760272898802,0.001,3843.2,3843.1,17.57566604]
[1760272899501,0.001,3843.2,3843.1,19.49566604]
[1760272902616,0.001,3843.2,3843.1,14.5]
[1760272902804,3.23659833,3843.2,3843.1,14.5]
[1760272903010,0.6346,3843.2,3843.1,14.5]
[1760272903941,0.6346,3843.2,3842.4,0.002]
[1760272904080,0.6346,3843.2,3842.7,2.60228935]
[1760272904285,0.6346,3843.2,3842.8,17.10226903]
[1760272904521,0.6346,3843.2,3842.9,2.60215763]
[1760272905182,0.001,3843.2,3843.0,2.60208316]
[1760272906226,0.001,3843.2,3843.1,2.60206604]
[1760272906699,0.001,3843.2,3843.1,3.07046604]
[1760272908015,0.001,3843.2,3843.1,17.57046604]
[1760272908481,0.001,3843.2,3843.1,17.70006604]
[1760272912137,0.001,3843.2,3843.1,19.62006604]
[1760272917017,1e-08,3843.6,3843.5,4.52179523]
[1760272917360,1e-08,3843.6,3843.5,4.65139523]
[1760272917561,1e-08,3843.6,3843.5,5.10239523]
[1760272917928,1e-08,3843.6,3843.5,19.60239523]
[1760272921076,0.001,3844.0,3843.5,19.60239523]
[1760272921077,1e-08,3844.3,3844.2,2.60132147]
[1760272921241,2.59970127,3846.6,3844.6,2.60105082]
[1760272921437,2.59994916,3846.3,3844.6,2.60105082]
[1760272921640,0.001,3846.9,3844.6,3.18165082]
[1760272921641,2.5997078,3846.6,3844.6,3.18165082]
[1760272921842,1.92,3846.3,3844.6,17.68165082]
[1760272922039,0.6336,3846.2,3844.6,17.68165082]
[1760272922357,1.92,3846.1,3844.6,17.68165082]
[1760272922672,1.92,3846.2,3844.6,17.68165082]
[1760272922974,2.60012922,3846.0,3844.6,17.68165082]
[1760272923356,1.92,3846.0,3844.6,17.68165082]
[1760272925192,2.60011378,3846.0,3844.6,17.68165082]
[1760272925692,1.92,3846.0,3844.6,17.68165082]
[1760272926477,2.60011336,3846.0,3844.6,17.68165082]
[1760272926671,2.59997901,3846.2,3844.6,17.68165082]
[1760272926672,2.60017333,3845.9,3844.6,17.68165082]
[1760272927066,2.5536,3846.1,3844.6,17.68165082]
[1760272927294,2.5536,3845.7,3844.6,14.5]
[1760272927456,0.6336,3845.6,3844.6,17.68165082]
[1760272928097,0.6336,3845.7,3844.6,17.68165082]
[1760272928295,2.60038979,3845.6,3844.6,17.68165082]
[1760272928791,3.23391452,3845.7,3844.6,17.68165082]
[1760272928978,0.6336,3845.6,3844.6,17.68165082]
[1760272929562,2.5536,3845.7,3844.6,17.68165082]
[1760272930296,3.2339197,3845.7,3844.6,17.68165082]
[1760272930595,3.2339197,3845.7,3844.6,3.18165082]
[1760272931098,3.2339197,3845.7,3844.6,17.68165082]
[1760272931874,1.92,3845.6,3844.6,17.68165082]
[1760272932070,3.00762385,3846.4,3844.6,17.68165082]
[1760272932071,1.92,3845.4,3844.6,14.6296]
[1760272932279,1.921,3845.1,3844.6,14.5]
[1760272932499,0.001,3845.1,3844.6,17.10105082]
[1760272932888,0.001,3845.1,3844.6,14.5]
[1760272933089,0.001,3845.1,3844.6,17.10105082]
[1760272933385,0.001,3845.1,3844.6,17.55205082]
[1760272934001,0.001,3845.1,3844.6,17.10105082]
[1760272937126,0.001,3845.1,3844.6,14.5]
[1760272937697,0.001,3845.1,3844.6,17.10105082]
[1760272938645,0.001,3845.1,3844.6,17.53885082]
[1760272939957,0.001,3845.1,3844.6,17.10105082]
[1760272940866,2.5546,3845.1,3844.6,14.5]
[1760272941024,0.6346,3845.1,3844.6,14.5]
[1760272941224,0.001,3845.1,3844.6,17.10105082]
[1760272943556,1.921,3845.1,3844.6,14.5]
[1760272943856,0.001,3845.1,3844.6,17.10105082]
[1760272944472,0.001,3845.1,3844.6,14.5]
[1760272944643,1.92,3845.0,3844.6,14.5]
[1760272944837,4.52078126,3845.0,3844.6,14.5]
[1760272945726,5.15558317,3844.7,3844.6,14.5]
[1760272945949,0.001,3844.7,3844.3,0.4378]
[1760272946131,0.001,3844.7,3844.4,3.16856613]
[1760272946331,0.001,3844.7,3844.5,14.5]
[1760272948568,0.001,3844.7,3844.5,17.10110765]
[1760272948877,0.001,3844.7,3844.5,14.5]
[1760272955269,2.60105082,3844.6,3844.5,14.5]
[1760272955515,2.60113669,3844.5,3844.3,0.002]
[1760272955679,2.60118614,3844.4,3844.3,0.002]
[1760272956000,2.60114135,3844.5,3844.3,0.002]
[1760272956583,1.92,3844.5,3844.3,0.002]
[1760272957007,1.92,3844.4,3844.3,0.002]
[1760272957377,2.60118614,3844.4,3844.3,0.002]
[1760272958473,3.23478614,3844.4,3844.3,0.002]
[1760272959885,5.15478614,3844.4,3844.3,0.002]
[1760272966498,0.10434968,3844.5,3843.9,1e-08]
[1760272966499,5.15505681,3844.0,3843.9,1e-08]
[1760272967532,5.25942936,3844.0,3843.9,1e-08]
[1760272968414,5.66745425,3844.0,3843.9,1e-08]
[1760272970644,5.5630817,3844.0,3843.9,1e-08]
[1760272971448,5.15505681,3844.0,3843.9,1e-08]
[1760272972710,5.4896303,3844.0,3843.9,1e-08]
[1760272972914,5.84069988,3844.0,3843.9,1e-08]
[1760272973317,5.50612639,3844.0,3843.9,1e-08]
[1760272974546,5.91415592,3844.0,3843.9,1e-08]
[1760272975129,5.56308634,3844.0,3843.9,1e-08]
[1760272976532,5.66746434,3844.0,3843.9,1e-08]
[1760272980163,6.01853392,3844.0,3843.9,1e-08]
[1760272980656,9.11727941,3844.0,3843.9,1e-08]
[1760272980863,9.75906641,3844.0,3843.9,1e-08]
[1760272981030,8.92510741,3844.0,3843.9,1e-08]
[1760272981356,9.63967388,3844.0,3843.9,1e-08]
[1760272982219,9.30510039,3844.0,3843.9,1e-08]
[1760272983048,9.91996559,3844.0,3843.9,1e-08]
[1760272984364,3.23607234,3842.5,3842.4,1e-08]
[1760272984545,5.15607234,3842.5,3842.4,1e-08]
[1760272985554,5.26047459,3842.5,3842.4,1e-08]
[1760272987775,0.40806263,3843.4,3842.4,1e-08]
[1760272987925,2.60218862,3843.0,3842.4,0.47180001]
[1760272988133,1.92,3842.9,3842.5,14.5]
[1760272988332,4.52209495,3843.1,3842.5,14.5]
[1760272988566,0.6336,3842.9,3842.5,14.5]
[1760272989028,1.92,3842.9,3842.5,14.5]
[1760272989557,0.6336,3842.9,3842.5,14.5]
[1760272989759,2.5536,3842.9,3842.5,14.5]
[1760272991056,1.92,3842.8,3842.5,14.5]
[1760272992261,2.5536,3842.9,3842.5,14.5]
[1760272992435,2.5536,3843.0,3842.5,14.5]
[1760272992985,2.5536,3843.0,3842.5,14.9718]
[1760272993181,0.6336,3842.9,3842.5,14.5]
[1760272993948,2.60221273,3842.9,3842.5,14.5]
[1760272994157,2.60233221,3842.8,3842.5,14.5]
[1760272994877,2.60240462,3842.6,3842.5,14.5]
[1760272995077,2.60240462,3842.6,3842.4,1e-08]
[1760272995078,3.23607234,3842.5,3842.4,1e-08]
[1760273001480,3.34047377,3842.5,3842.4,1e-08]
[1760273002282,5.26147377,3842.5,3842.4,1e-08]
[1760273011046,5.15707234,3842.5,3842.4,1e-08]
[1760273014443,5.56519238,3842.5,3842.4,1e-08]
[1760273015555,5.15707234,3842.5,3842.4,1e-08]
[1760273021052,2.60347234,3842.5,3842.4,1e-08]
[1760273021555,4.52347234,3842.5,3842.4,1e-08]
[1760273022057,5.15707234,3842.5,3842.4,1e-08]
[1760273036584,3.23707234,3842.5,3842.4,1e-08]
[1760273036748,5.15707234,3842.5,3842.4,1e-08]
[1760273038913,5.26147377,3842.5,3842.4,1e-08]
[1760273039585,5.66960764,3842.5,3842.4,1e-08]
[1760273041277,5.26147377,3842.5,3842.4,1e-08]
[1760273044202,5.6696094,3842.5,3842.4,1e-08]
[1760273056640,5.6696094,3842.5,3841.6,0.002]
[1760273056641,5.15661429,3841.7,3841.6,1e-08]
[1760273060637,3.23661429,3841.7,3841.6,1e-08]
[1760273066546,5.15661429,3841.7,3841.6,1e-08]
[1760273066918,5.93972315,3841.7,3841.6,1e-08]
[1760273069316,5.94072315,3841.7,3841.6,1e-08]
[1760273073154,3.38712315,3841.7,3841.6,1e-08]
[1760273074653,0.78410886,3841.7,3841.6,1e-08]
[1760273074838,2.60401429,3841.7,3841.6,1e-08]
[1760273075040,3.07561429,3841.7,3841.6,1e-08]
[1760273075462,3.70921429,3841.7,3841.6,1e-08]